{"text_format":"1","workbook":"xlsx","n_sheets":4,"sheets":["Info","Verktyget","Bilaga 1 - Vägledning metod B","Data"],"not_rendered":{"charts":0,"images":1,"macros":1,"external_links":0,"defined_names":0,"comments":0,"pivot_tables":0},"unopened":[],"bounds":{"document_bytes":16777216,"sheet_cells":100000,"rows_first":2000,"rows_last":500,"rows_between":2000,"halvings":0,"cell_chars":16384,"cell_head_chars":4096},"cells_cut":0,"cells_raw":0,"read":"whole","date_system":"1900"}

{"sheet":"Info","index":0,"n_rows":35,"n_cols":4,"rows_kept":35,"cut":false,"hidden":false,"merged":[[12,1,12,9],[31,1,31,9],[4,1,4,9],[7,3,7,4],[8,3,8,4],[9,3,9,4],[7,1,7,2],[8,1,8,2],[9,1,9,2],[34,1,34,9],[24,1,24,9],[25,1,25,9],[27,1,27,9],[28,1,28,9]]}
[]
[null,"Verktyg för beräkning av orimliga kostnader enligt bilaga VII FAR"]
[]
[1,"Information om verktyget"]
[null,"Verktyget har tagits fram av Naturvårdsverket för att utgöra ett stöd för verksamhetsutövare vid beräkningar av orimliga kostnader i enlighet med bilaga VII FAR1.\n\nFöre användning av verktyget rekommenderas användaren att ha läst och vara införstådd med innehållet i avsnitt 4.2 i bilaga VII FAR. Användaren rekommenderas även att läsa avsnitt 6.6.2 i kommissionens vägledning 5 om övervakningsmetodplaner2.\n\n1Kommissionens delegerande förordning (EU) 2019/331 av den 19 december 2018 om fastställande av unionstäckande övergångsbestämmelser för harmoniserad gratis tilldelning av utsläppsrätter enligt artikel 10a i Europaparlamentets och rådets direktiv 2003/87/EG.\n2Guidance Document No. 5 on the harmonised free allocation methodology for the EU ETS post 2020."]
[]
[null,"Versionsinformation:"]
[null,"Framtagen av",null,"Naturvårdsverket"]
[null,"Version",null,5]
[null,"Publiceringsdatum",null,"2024-03-28"]
[]
[2,"Hur verktyget ska användas"]
[null,"Verktyget innehåller förklarande text som ska vägleda användaren genom beräkningarna. Det är viktigt att instruktionerna följs och att uppgifter fylls i på rätt sätt för att beräkningarna ska fungera.\n\n"]
[]
[null,"Förklarande färgkoder och text:"]
[]
[null,null,"Blå kursiv text","Vägledande text hämtad från FAR."]
[null,null,"Stor röd text","Felmeddelande, indikerar att uppgifter har fyllts i på fel sätt."]
[null,null,null,"Fält som användaren kan fylla i."]
[null,null,null,"Fält som beräknas automatiskt av verktyget."]
[null,null,null,"Fält som innehåller vägledande text baserat på de val användaren gjort."]
[null,null,null,"Ifyllda uppgifter i andra fält gör att dessa fält inte ska användas."]
[]
[3,"Länkar"]
[null,"Guidance Document No. 5 on the harmonised free allocation methodology for the EU ETS post 2020"]
[null,"https://climate.ec.europa.eu/system/files/2019-02/p4_gd5_mr_guidance_en.pdf"]
[]
[null,"Naturvårdsverkets vägledning om den hierarkiska ordningen enligt FAR och hur avsteg ska motiveras"]
[null,"https://www.naturvardsverket.se/4a3aab/globalassets/vagledning/utslappshandel/vagledning-om-den-hierarkiska-ordningen-enligt-far-ver-1-20200422.pdf"]
[]
[4,"Viktigt om användandet av detta verktyg"]
[null,"Verktyget har utvecklats noggrant men misstag kan inte uteslutas. Alla formler och beräkningar i verktyget kan kontrolleras av användaren utan att något lösenord krävs. Naturvårdsverket kan inte hållas ansvariga för eventuell skada som kan uppstå på grund av felaktiga eller missledande resultat från detta verktyg. Det är verksamhetsutövarens ansvar att korrekt information i slutändan lämnas in till Naturvårdsverket."]
[]
[5,"Kontakt"]
[null,"Frågor kan skickas till vår funktionsbrevlåda: EUETS@naturvardsverket.se.\n\nDet går också bra att ringa vår växel (010-698 10 00) för att komma i kontakt med handläggare. Vi som arbetar med dessa frågor är placerade på utsläppshandelsenheten."]

{"sheet":"Verktyget","index":1,"n_rows":160,"n_cols":16,"rows_kept":160,"cut":false,"hidden":false,"merged":[[94,3,94,9],[30,2,30,12],[36,2,36,12],[45,3,45,4],[56,2,56,12],[33,3,33,4],[39,5,39,9],[39,3,39,4],[52,2,52,12],[47,3,47,9],[41,3,41,9],[33,5,33,6],[44,5,44,6],[54,2,54,12],[48,3,50,9],[42,3,42,9],[31,2,31,12],[3,2,3,12],[5,2,5,12],[7,2,7,4],[26,2,26,12],[28,2,28,12],[24,2,24,12],[14,5,14,9],[16,5,16,9],[18,5,18,9],[21,3,21,9],[10,2,10,12],[82,3,82,12],[62,3,62,11],[73,3,73,11],[65,3,65,5],[66,3,66,5],[67,3,67,5],[68,3,68,5],[69,3,69,5],[76,3,76,5],[77,3,77,5],[72,3,72,12],[74,10,75,10],[63,9,64,9],[78,3,78,5],[74,3,75,5],[74,6,74,8],[37,2,37,12],[79,3,79,5],[80,3,80,5],[44,3,44,4],[74,9,75,9],[74,11,75,11],[63,3,64,5],[63,10,64,10],[63,11,64,11],[63,6,63,8],[59,3,59,12],[58,3,58,12]]}
[]
[null,null,"Verktyg för beräkning av orimliga kostnader enligt bilaga VII FAR"]
[]
[null,null,"1. Om anläggningen"]
[]
[null,null,"Åtgärder för att förbättra en anläggnings övervakningsmetod ska inte anses medföra orimliga höga kostnader upp till ett ackumulerat belopp på 4 000 euro per rapporteringsperiod. För anläggningar med låga utsläpp i enlighet med artikel 47 i förordningen (EU) 2018/2066 ska detta tröskelvärde vara 1 000 euro per rapporteringsperiod."]
[]
[null,null,"Har anläggningen låga utsläpp?",null,null,null,null,null,null,null,null,null,null,null,null,true]
[null,null,null,null,null,null,null,null,null,null,null,null,null,null,null,false]
[]
[null,null,"2. Avsnitt i övervakningsmetodplanen som berörs"]
[]
[null,null,"Ange vilket avsnitt i övervakningsmetodplanen som beräkningen om orimliga kostnader avser."]
[]
[null,null,null,"Flik"]
[]
[null,null,null,"Rubrik"]
[]
[null,null,null,"Underrubrik"]
[]
[null,null,null,"Kommentar:"]
[]
[]
[]
[null,null,"3. Beräkning av förbättringsfaktorn"]
[]
[null,null,"Förbättringsfaktorn ska vara 1 % av delanläggningens senast fastställda årliga gratistilldelning. Genom undantag från denna beräkningsmetod får den behöriga myndigheten tillåta verksamhetsutövare att fastställa förbättringsfaktorn till 1 % av den påverkade koldioxidekvivalenten."]
[]
[null,null,"I första hand ska metod A nedan användas för att beräkna förbättringsfaktorn. Gör därför först en uträkning baserat på metod A.\nOm det därefter visar sig finnas ett behov av att förfina resultatet kan metod B användas som alternativ. "]
[]
[null,null,"A) Förbättringsfaktorn baseras på delanläggningens preliminära årliga tilldelning för nästa handelsperiod"]
[null,null,"Använd det värde som räknats ut i referensdatarapporten för preliminär tilldelning med riktmärke för innevarande handelsperiod.  \nAnge \"Högst\" i Flik K.V.1.a och använd värdet i Flik K.V.1.c för den aktuella delanläggningen. "]
[null,null,null,null,null,null,null,null,null,null,null,null,null,null,null,"Ifylld?"]
[null,null,"i. ","Antal tilldelade utsläppsrätter",null,null,null,null,null,null,null,null,null,null,null,{"$f":"IF(F34>0,TRUE, FALSE)","v":false}]
[]
[]
[null,null,"B) Förbättringsfaktorn baseras på den påverkade mängden koldioxidekvivalenter"]
[null,null,"Se Bilaga 1 - Vägledning metod B för vägledning angående hur den påverkade mängden koldioxidekvivalenter ska beräknas."]
[]
[null,null,"i.","Välj parameter"]
[]
[null,null,null,"Den påverkade mängden koldioxidekvivalenter beräknas som:"]
[null,null,null,{"$f":"IF(ISBLANK(F40), \"\", INDEX(VägledningPara[Hur den påverkade koldioxidekvivalenten ska beräknas], MATCH(F40, VägledningPara[Parameter], 0)))","v":""}]
[null,null,null,null,null,null,null,null,null,null,null,null,null,null,null,"Ifylld?"]
[null,null,"ii.","Mängd koldioxidekvivalenter",null,null,null,null,null,null,null,null,null,null,null,{"$f":"IF(F45>0,TRUE, FALSE)","v":false}]
[null,null,null,"(anges i ton)"]
[]
[null,null,"iii.","Beskrivning av hur den påverkade mängden koldioxidekvivalenter har beräknats"]
[]
[]
[null,null,null,null,null,null,null,null,null,null,null,null,null,null,null,"Förbättringsfaktor"]
[null,null,null,null,null,null,null,null,null,null,null,null,null,null,null,{"$f":"IF(AND(P34=TRUE,P45=TRUE), \"FEL\", (F34+F45)*0.01)","v":0}]
[null,null,{"$f":"IF(COUNT(F34,F45) = 2, \"Felmeddelande: Uppgifter har fyllts i under både A) och B). Endast en av metoderna kan användas.\", \"\")","v":""}]
[]
[null,null,"4. Beräkning av orimliga kostnader"]
[]
[null,null,"Kontrollera så att uppgifterna under avsnitt 1, 2 och 3 är ifyllda innan detta avsnitt fylls i. Förbättringsfaktorn under c) beräknas enligt de ifyllda uppgifterna i avsnitt 3."]
[]
[null,null,"a)","Beräkning av årliga kostnader"]
[null,null,null,"Ange de kostnader som det skulle innebära att tillämpa en särskild bestämningsmetod i tabellen nedan."]
[]
[null,null,null,"i. Nuvarande kostnader eller referenskostnader "]
[null,null,null,"Ange nedan kostnaderna för den nuvarande bestämningsmetoden eller datakällan, eller om en jämförelse görs mellan flera alternativ anges referenskostnaden."]
[null,null,null,"Kort beskrivning",null,null,"Investeringskostnader",null,null,"Driftkostnader [€/år]","Övriga kostnader [€/år]","Årliga kostnader [€]"]
[null,null,null,null,null,null,"Investeringskostnad [€]","Avskrivningstid [år]","Ränta [%]"]
[null,null,null,null,null,null,null,null,null,null,null,{"$f":"IF(COUNT(G66:K66)>0,IF(COUNT(G66:H66)=2,IF(I66>0,-PMT(I66/100,H66,G66),G66/H66),0)+J66+K66,\"\")","v":""}]
[null,null,null,null,null,null,null,null,null,null,null,{"$f":"IF(COUNT(G67:K67)>0,IF(COUNT(G67:H67)=2,IF(I67>0,-PMT(I67/100,H67,G67),G67/H67),0)+J67+K67,\"\")","v":""}]
[null,null,null,null,null,null,null,null,null,null,null,{"$f":"IF(COUNT(G68:K68)>0,IF(COUNT(G68:H68)=2,IF(I68>0,-PMT(I68/100,H68,G68),G68/H68),0)+J68+K68,\"\")","v":""}]
[null,null,null,null,null,null,null,null,null,null,null,{"$f":"IF(COUNT(G69:K69)>0,IF(COUNT(G69:H69)=2,IF(I69>0,-PMT(I69/100,H69,G69),G69/H69),0)+J69+K69,\"\")","v":""}]
[null,null,null,null,null,null,null,null,null,null,null,{"$f":"IF(COUNT(G70:K70)>0,IF(COUNT(G70:H70)=2,IF(I70>0,-PMT(I70/100,H70,G70),G70/H70),0)+J70+K70,\"\")","v":""}]
[null,null,null,null,null,null,null,null,null,"Summa","=",{"$f":"IF(COUNT(L66:L70)>0,SUM(L66:L70),\"\")","v":""}]
[]
[null,null,null,"ii. Kostnader för att tillämpa en bestämningsmetod eller datakälla högre upp i hierarkin"]
[null,null,null,"Ange nedan de kostnader som medförs om en bestämningsmetod eller datakälla högre upp i hierarkin tillämpas."]
[null,null,null,"Kort beskrivning",null,null,"Investeringskostnader",null,null,"Driftkostnader [€/år]","Övriga kostnader [€/år]","Årliga kostnader [€]"]
[null,null,null,null,null,null,"Investeringskostnad [€]","Avskrivningstid [år]","Ränta [%]"]
[null,null,null,null,null,null,null,null,null,null,null,{"$f":"IF(COUNT(G77:K77)>0,IF(COUNT(G77:H77)=2,IF(I77>0,-PMT(I77/100,H77,G77),G77/H77),0)+J77+K77,\"\")","v":""}]
[null,null,null,null,null,null,null,null,null,null,null,{"$f":"IF(COUNT(G78:K78)>0,IF(COUNT(G78:H78)=2,IF(I78>0,-PMT(I78/100,H78,G78),G78/H78),0)+J78+K78,\"\")","v":""}]
[null,null,null,null,null,null,null,null,null,null,null,{"$f":"IF(COUNT(G79:K79)>0,IF(COUNT(G79:H79)=2,IF(I79>0,-PMT(I79/100,H79,G79),G79/H79),0)+J79+K79,\"\")","v":""}]
[null,null,null,null,null,null,null,null,null,null,null,{"$f":"IF(COUNT(G80:K80)>0,IF(COUNT(G80:H80)=2,IF(I80>0,-PMT(I80/100,H80,G80),G80/H80),0)+J80+K80,\"\")","v":""}]
[null,null,null,null,null,null,null,null,null,null,null,{"$f":"IF(COUNT(G81:K81)>0,IF(COUNT(G81:H81)=2,IF(I81>0,-PMT(I81/100,H81,G81),G81/H81),0)+J81+K81,\"\")","v":""}]
[null,null,null,null,null,null,null,null,null,"Summa","=",{"$f":"IF(COUNT(L77:L81)>0,SUM(L77:L81),\"\")","v":""}]
[]
[null,null,"b)","Årlig kostnad",null,null,null,null,null,null,null,{"$f":"IF(ISNUMBER(L82),L82-IF(ISNUMBER(L71),L71,0),\"\")","v":""}]
[]
[null,null,null,null,null,"Pris per utsläppsrätt [€/t CO2e]",null,"Förbättringsfaktor [t CO2e]"]
[null,null,"c)","Årlig vinst",null,80,"x",{"$f":"IF(P52>0, P52, \"\")","v":""},null,null,"=",{"$f":"IF(H87=\"\", \"\", F87*H87)","v":""}]
[]
[]
[null,null,"d)","Är kostnaderna orimliga?",null,{"$f":"IF(COUNT(L87,L84)=2,AND(L84>L87,L84>IF(F8,1000,4000)),\"\")","v":""}]
[]
[]
[]
[null,null,null,"Kommentar:"]
[]
[]
[]
[]
[]
[]
[]
[]
[]
[]
[]
[]
[]
[]
[]
[]
[]
[]
[]
[]
[]
[]
[]
[]
[]
[]
[]
[]
[]
[]
[]
[]
[]
[]
[]
[]
[]
[null,null,null,"Ref",null,null,null,"Listreferenser:"]
[null,null,null,"Flik","Rubrikadress",null,null,"Rubriklista",null,{"$f":"INDEX(Ref_Verktyg[Rubrikadress], MATCH($F$15, Ref_Verktyg[Flik], 0))","v":{"$error":"#N/A"}}]
[null,null,null,"E_EnergyFlows",{"$f":"ADDRESS(ROW(E142), COLUMN(E142))&\":\"&ADDRESS(ROW(E145), COLUMN(E145))","v":"$E$142:$E$145"},null,null,"U-Rubriklista",null,{"$f":"INDEX(RubrikRef_Verktyg[U-rubrikadress], MATCH($F$17, RubrikRef_Verktyg[Rubrik], 0))","v":{"$error":"#N/A"}}]
[null,null,null,"F_ProductBM",{"$f":"ADDRESS(ROW(E146), COLUMN(E146))","v":"$E$146"}]
[null,null,null,"G_Fall-back",{"$f":"ADDRESS(ROW(E147), COLUMN(E147))&\":\"&ADDRESS(ROW(E151), COLUMN(E151))","v":"$E$147:$E$151"}]
[null,null,null,"H_SpecialBM",{"$f":"ADDRESS(ROW(E152), COLUMN(E152))&\":\"&ADDRESS(ROW(E160), COLUMN(E160))","v":"$E$152:$E$160"}]
[]
[]
[null,null,null,"RubrikRef"]
[null,null,null,"Flik","Rubrik","U-rubrikadress"]
[null,null,null,"E_EnergyFlows","I. Insatsbränsle","Data!D18"]
[null,null,null,null,"II. Mätbar värme på anläggningsnivå","Data!D19"]
[null,null,null,null,"III. Restgasbalans på anläggningsnivå","Data!D20"]
[null,null,null,null,"IV. El på anläggningsnivå","Data!D21"]
[null,null,null,"F_ProductBM","X. Delanläggningar med produktriktmärke","Data!D23:D28"]
[null,null,null,"G_Fall-back","1. Delanläggning med värmeriktmärke, KL","Data!D30:D33"]
[null,null,null,null,"2. Delanläggning med värmeriktmärke, ej KL","Data!D34:D37"]
[null,null,null,null,"3. Fjärrvärmedelanläggning, ej KL","Data!D38:D41"]
[null,null,null,null,"4. Delanläggning med bränsleriktmärke, KL","Data!D42:D44"]
[null,null,null,null,"5. Delanläggning med bränsleriktmärke, ej KL","Data!D45:D47"]
[null,null,null,"H_SpecialBM","I. CWT (raffinaderiprodukter)","Data!D49"]
[null,null,null,null,"II. Kalk","Data!D50"]
[null,null,null,null,"III. Dolime","Data!D51"]
[null,null,null,null,"IV. Ångkrackning","Data!D52"]
[null,null,null,null,"V. CWT (aromater)","Data!D53"]
[null,null,null,null,"VI. Vätgas","Data!D54"]
[null,null,null,null,"VII. Syntesgas","Data!D55"]
[null,null,null,null,"VIII. Etylenoxid/etylenglykoler","Data!D56"]
[null,null,null,null,"IX. Vinylkloridmonomer (VCM)","Data!D57"]

{"sheet":"Bilaga 1 - Vägledning metod B","index":2,"n_rows":88,"n_cols":9,"rows_kept":88,"cut":false,"hidden":false,"merged":[[3,1,3,11],[8,4,8,8],[10,4,10,8],[12,4,12,8],[25,2,25,9],[16,2,16,9],[20,2,20,9],[17,2,17,9],[24,2,24,9],[22,5,22,9]]}
[]
[null,"Bilaga 1 - Vägledning metod B"]
[]
[null,"1. Vägledning"]
[]
[]
[null,"a) Ange nedan vilken parameter i övervakningsmetodplanen som avses"]
[]
[null,null,"Flik"]
[]
[null,null,"Rubrik"]
[]
[null,null,"Underrubrik"]
[]
[null,"b) Typ av parameter och hur den påverkade mängden koldioxidekvivalenter ska beräknas"]
[]
[null,null,"Parametern är av typen:"]
[null,null,{"$f":"IF(ISBLANK(E13), \"\", INDEX(Vägledning[Parameter], MATCH(CONCATENATE(E11,E13), Vägledning[Rub+Urub], 0)))","v":""}]
[]
[null,null,"Den påverkade mängden koldioxidekvivalenter ska beräknas som:"]
[null,null,{"$f":"IF(ISBLANK(E13), \"\", CONCATENATE(INDEX(VägledningPara[Hur den påverkade koldioxidekvivalenten ska beräknas], MATCH(C18, VägledningPara[Parameter], 0)), INDEX(VägledningPara[Tillägg], MATCH(C18, VägledningPara[Parameter], 0))))","v":""}]
[]
[null,null,"Hänvisning till referensdatarapporten:",null,null,{"$f":"IF(ISBLANK(E13), \"\", INDEX(Vägledning[Hänvisning till Referensdatarapporten],MATCH(CONCATENATE(E11,E13), Vägledning[Rub+Urub], 0)))","v":""}]
[null,null,""]
[null,null,"Ytterligare information:"]
[null,null,{"$f":"IF(ISBLANK(E13), \"\", INDEX(Vägledning[Beskrivning], MATCH(CONCATENATE(E11,E13), Vägledning[Rub+Urub], 0)))","v":""}]
[]
[]
[]
[]
[]
[]
[]
[]
[]
[]
[]
[]
[]
[]
[]
[]
[]
[]
[]
[]
[]
[]
[]
[]
[]
[]
[]
[]
[]
[]
[]
[]
[]
[null,null,"Ref",null,null,null,"Listreferenser:"]
[null,null,"Flik","Rubrikadress",null,null,"Rubriklista",null,{"$f":"INDEX(Ref[Rubrikadress], MATCH($E$9, Ref[Flik], 0))","v":{"$error":"#N/A"}}]
[null,null,"E_EnergyFlows",{"$f":"ADDRESS(ROW(D70), COLUMN(D70))&\":\"&ADDRESS(ROW(D73), COLUMN(D73))","v":"$D$70:$D$73"},null,null,"U-Rubriklista",null,{"$f":"INDEX(RubrikRef[U-rubrikadress], MATCH($E$11, RubrikRef[Rubrik], 0))","v":{"$error":"#N/A"}}]
[null,null,"F_ProductBM",{"$f":"ADDRESS(ROW(D74), COLUMN(D74))","v":"$D$74"}]
[null,null,"G_Fall-back",{"$f":"ADDRESS(ROW(D75), COLUMN(D75))&\":\"&ADDRESS(ROW(D79), COLUMN(D79))","v":"$D$75:$D$79"}]
[null,null,"H_SpecialBM",{"$f":"ADDRESS(ROW(D80), COLUMN(D80))&\":\"&ADDRESS(ROW(D88), COLUMN(D88))","v":"$D$80:$D$88"}]
[]
[]
[null,null,"RubrikRef"]
[null,null,"Flik","Rubrik","U-rubrikadress"]
[null,null,"E_EnergyFlows","I. Insatsbränsle","Data!D18"]
[null,null,null,"II. Mätbar värme på anläggningsnivå","Data!D19"]
[null,null,null,"III. Restgasbalans på anläggningsnivå","Data!D20"]
[null,null,null,"IV. El på anläggningsnivå","Data!D21"]
[null,null,"F_ProductBM","X. Delanläggningar med produktriktmärke","Data!D23:D28"]
[null,null,"G_Fall-back","1. Delanläggning med värmeriktmärke, KL","Data!D30:D33"]
[null,null,null,"2. Delanläggning med värmeriktmärke, ej KL","Data!D34:D37"]
[null,null,null,"3. Fjärrvärmedelanläggning, ej KL","Data!D38:D41"]
[null,null,null,"4. Delanläggning med bränsleriktmärke, KL","Data!D42:D44"]
[null,null,null,"5. Delanläggning med bränsleriktmärke, ej KL","Data!D45:D47"]
[null,null,"H_SpecialBM","I. CWT (raffinaderiprodukter)","Data!D49"]
[null,null,null,"II. Kalk","Data!D50"]
[null,null,null,"III. Dolime","Data!D51"]
[null,null,null,"IV. Ångkrackning","Data!D52"]
[null,null,null,"V. CWT (aromater)","Data!D53"]
[null,null,null,"VI. Vätgas","Data!D54"]
[null,null,null,"VII. Syntesgas","Data!D55"]
[null,null,null,"VIII. Etylenoxid/etylenglykoler","Data!D56"]
[null,null,null,"IX. Vinylkloridmonomer (VCM)","Data!D57"]

{"sheet":"Data","index":3,"n_rows":57,"n_cols":8,"rows_kept":57,"cut":false,"hidden":true,"merged":[]}
[]
[null,"Vägledning metod B"]
[]
[]
[null,"Parametrar enligt avsnitt 4.2 Bilaga VII FAR"]
[]
[null,null,"Parameter","Hur den påverkade koldioxidekvivalenten ska beräknas","Tillägg"]
[null,null,"a) Bränsle eller material som innehåller kol, inklusive avgaser","De utsläpp som skulle bli följden om det kol som ingår i den årliga mängden bränsle eller material omvandlades till koldioxid.","\n\n(I de fall som utsläppen övervakas med en mätningsbaserad metod ska de årliga utsläppen från varje utsläppskälla användas.)"]
[null,null,"b) Utsläpp som övervakas med en mätningsbaserad metod","De årliga utsläppen från varje utsläppskälla.",{"$f":"\"\"","v":""}]
[null,null,"c) Mätbar värme","Den respektive årliga mängden mätbar värme multiplicerad med värmeriktmärket. \n\nEnligt vägledning 5 ska värmeriktmärket för innevarande handelsperiod användas tills ett nytt värde är fastställt, d.v.s. 47.3 EUA/TJ.",{"$f":"\"\"","v":""}]
[null,null,"d) Icke mätbar värme","Den respektive årliga mängden icke mätbar värme multiplicerad med bränsleriktmärket. \n\nEnligt vägledning 5 ska bränsleriktmärket för innevarande handelsperiod användas tills ett nytt värde är fastställt, d.v.s. 42.6 EUA/TJ.",{"$f":"\"\"","v":""}]
[null,null,"e) El","Den respektive årliga mängden el multiplicerad med faktorn 0.376 t CO2/MWh (enligt 22.3 i FAR)",{"$f":"\"\"","v":""}]
[null,null,"f) Kvantiteten av en produkt för vilken ett produktriktmärke ska tillämpas","Delanläggningens preliminära fria tilldelning för det första året i tilldelningsperioden. Om det relevanta riktmärket ännu inte har fastställts i enlighet med artikel 10a.2 i direktiv 2003/87/EG, ska riktmärket för innevarande tilldelningsperiod användas enligt bilaga I FAR. \n\nAnvänd det värde som räknats ut i referensdatarapporten för preliminär tilldelning med riktmärke för innevarande tilldelningsperiod.  Ange \"Högst\" i Flik K.V.1.a och använd värdet för aktuell delanläggningen i Flik K.V.1.c. \n\n",{"$f":"\"\"","v":""}]
[]
[null,"Koppling mellan rubriker och parametrar"]
[]
[null,"Flik","Rubrik","Underrubrik","Parameter","Rub+Urub","Hänvisning till Referensdatarapporten","Beskrivning"]
[null,"E_EnergyFlows","I. Insatsbränsle","(a) Insatsbränsleflöde","a) Bränsle eller material som innehåller kol, inklusive avgaser",{"$f":"CONCATENATE(C18,D18)","v":"I. Insatsbränsle(a) Insatsbränsleflöde"},"Flik E_EnergyFlows, I",{"$f":"\"\"","v":""}]
[null,null,"II. Mätbar värme på anläggningsnivå","(a) Flöden av mätbar värme","c) Mätbar värme","II. Mätbar värme på anläggningsnivå(a) Flöden av mätbar värme","Flik E_EnergyFlows, II.(p)","Beräkna medelvärdet av värme över samtliga år av den del värme under (p) som berörs, d.v.s. för den mängd som hierarkin inte uppfylls. Multiplicera sedan med värmeriktmärket."]
[null,null,"III. Restgasbalans på anläggningsnivå","(a) Restgasflöden","a) Bränsle eller material som innehåller kol, inklusive avgaser","III. Restgasbalans på anläggningsnivå(a) Restgasflöden","Flik E_EnergyFlows, III",{"$f":"\"\"","v":""}]
[null,null,"IV. El på anläggningsnivå","(a) Elflöden","e) El","IV. El på anläggningsnivå(a) Elflöden","Flik E_EnergyFlows, IV","Beräkna medelvärdet över samtliga år för den mängd el som berörs, d.v.s. för den mängd som hierarkin inte uppfylls. Multiplicera sedan med den faktor som nämns ovan."]
[null,null,null,null,null,""]
[null,"F_ProductBM","X. Delanläggningar med produktriktmärke","(b) Metod för att fastställa den årliga produktionen (verksamhetsnivån)","f) Kvantiteten av en produkt för vilken ett produktriktmärke ska tillämpas",{"$f":"CONCATENATE(C$23,D23)","v":"X. Delanläggningar med produktriktmärke(b) Metod för att fastställa den årliga produktionen (verksamhetsnivån)"},"Flik ProductBM, I.X.(a)",{"$f":"\"\"","v":""}]
[null,null,null,"(c) Utbytbarhet mellan bränsle och el","e) El",{"$f":"CONCATENATE(C$23,D24)","v":"X. Delanläggningar med produktriktmärke(c) Utbytbarhet mellan bränsle och el"},"Flik ProductBM, I.X.(c)","Beräkna medelvärdet av \"Relevant elförbrukning\" över samtliga år och multiplicerat med den faktor som nämns ovan."]
[null,null,null,"(e) Utsläpp som direkt kan tillskrivas delanläggningen","a) Bränsle eller material som innehåller kol, inklusive avgaser","X. Delanläggningar med produktriktmärke(e) Utsläpp som direkt kan tillskrivas delanläggningen","Flik ProductBM, I.X.(i)",{"$f":"\"\"","v":""}]
[null,null,null,"(f) Insatsbränsle till delanläggningen och relevant emissionsfaktor","a) Bränsle eller material som innehåller kol, inklusive avgaser","X. Delanläggningar med produktriktmärke(f) Insatsbränsle till delanläggningen och relevant emissionsfaktor","Flik ProductBM, I.X.(h)","Multiplicera insatsbränsle med den viktade emissionsfaktorn för varje år och beräkna sedan medelvärdet."]
[null,null,null,"(g) Import till och export från delanläggningen av mätbar värme","c) Mätbar värme","X. Delanläggningar med produktriktmärke(g) Import till och export från delanläggningen av mätbar värme","Flik ProductBM, I.X.(k)","Beräkna medelvärdet över samtliga år för aktuell post, d.v.s. den eller de poster som hierarikin inte är uppfylld för. Multiplicera sedan med värmeriktmärket."]
[null,null,null,"(h) Delanläggningens restgasbalans","a) Bränsle eller material som innehåller kol, inklusive avgaser",{"$f":"CONCATENATE(C$23,D28)","v":"X. Delanläggningar med produktriktmärke(h) Delanläggningens restgasbalans"},"Flik ProductBM, I.X.(l)","Beräkna utsläppen över samtliga år för aktuell post, d.v.s. den eller de poster som hierarikin inte är uppfylld för. Räkna sedan ut medelvärdet för åren."]
[null,null,null,null,null,""]
[null,"G_Fall-back","1. Delanläggning med värmeriktmärke, KL","(b) Metod för att fastställa den årliga verksamhetsnivån","c) Mätbar värme",{"$f":"CONCATENATE(C$30,D30)","v":"1. Delanläggning med värmeriktmärke, KL(b) Metod för att fastställa den årliga verksamhetsnivån"},"Flik G_Fall-back, I.(a)","Beräkna medelvärdet av verksamhetsnivåerna över samtliga år och multiplicera med värmeriktmärket."]
[null,null,null,"(d) Insatsbränsle till delanläggningen och relevant emissionsfaktor","a) Bränsle eller material som innehåller kol, inklusive avgaser",{"$f":"CONCATENATE(C$30,D31)","v":"1. Delanläggning med värmeriktmärke, KL(d) Insatsbränsle till delanläggningen och relevant emissionsfaktor"},"Flik G_Fall-back, I.(d)","Beräkna utsläppen över samtliga år för aktuell post, d.v.s. den eller de poster som hierarikin inte är uppfylld för. Räkna sedan ut medelvärdet för åren."]
[null,null,null,"(e) Producerad mätbar värme","c) Mätbar värme","1. Delanläggning med värmeriktmärke, KL(e) Producerad mätbar värme","Flik G_Fall-back, I.(e)","Beräkna medelvärdet av producerad mätbar värme över samtliga år och multiplicera med värmeriktmärket."]
[null,null,null,"(f) Importerad mätbar värme","c) Mätbar värme","1. Delanläggning med värmeriktmärke, KL(f) Importerad mätbar värme","Flik G_Fall-back, I.(f)","Beräkna medelvärdet av importerad nettovärme över samtliga år för aktuell post, d.v.s. den eller de poster som hierarikin inte är uppfylld för. Multiplicera sedan med värmeriktmärket."]
[null,null,"2. Delanläggning med värmeriktmärke, ej KL","(b) Metod för att fastställa den årliga verksamhetsnivån","c) Mätbar värme",{"$f":"CONCATENATE(C$34,D34)","v":"2. Delanläggning med värmeriktmärke, ej KL(b) Metod för att fastställa den årliga verksamhetsnivån"},"Flik G_Fall-back, II.(a)","Beräkna medelvärdet av verksamhetsnivåerna över samtliga år och multiplicera med värmeriktmärket."]
[null,null,null,"(d) Insatsbränsle till delanläggningen och relevant emissionsfaktor","a) Bränsle eller material som innehåller kol, inklusive avgaser",{"$f":"CONCATENATE(C$34,D35)","v":"2. Delanläggning med värmeriktmärke, ej KL(d) Insatsbränsle till delanläggningen och relevant emissionsfaktor"},"Flik G_Fall-back, II.(d)","Beräkna utsläppen över samtliga år för aktuell post, d.v.s. den eller de poster som hierarikin inte är uppfylld för. Räkna sedan ut medelvärdet för åren."]
[null,null,null,"(e) Producerad mätbar värme","c) Mätbar värme","2. Delanläggning med värmeriktmärke, ej KL(e) Producerad mätbar värme","Flik G_Fall-back, II.(e)","Beräkna medelvärdet av producerad mätbar värme över samtliga år och multiplicera med värmeriktmärket."]
[null,null,null,"(f) Importerad mätbar värme","c) Mätbar värme","2. Delanläggning med värmeriktmärke, ej KL(f) Importerad mätbar värme","Flik G_Fall-back, II.(f)","Beräkna medelvärdet av importerad nettovärme över samtliga år för aktuell post, d.v.s. den eller de poster som hierarikin inte är uppfylld för. Multiplicera sedan med värmeriktmärket."]
[null,null,"3. Fjärrvärmedelanläggning, ej KL","(b) Metod för att fastställa den årliga verksamhetsnivån","c) Mätbar värme",{"$f":"CONCATENATE(C$38,D38)","v":"3. Fjärrvärmedelanläggning, ej KL(b) Metod för att fastställa den årliga verksamhetsnivån"},"Flik G_Fall-back, III.(a)","Beräkna medelvärdet av verksamhetsnivåerna över samtliga år och multiplicera med värmeriktmärket."]
[null,null,null,"(d) Insatsbränsle till delanläggningen och relevant emissionsfaktor","a) Bränsle eller material som innehåller kol, inklusive avgaser",{"$f":"CONCATENATE(C$38,D39)","v":"3. Fjärrvärmedelanläggning, ej KL(d) Insatsbränsle till delanläggningen och relevant emissionsfaktor"},"Flik G_Fall-back, III.(d)","Beräkna utsläppen över samtliga år för aktuell post, d.v.s. den eller de poster som hierarikin inte är uppfylld för. Räkna sedan ut medelvärdet för åren."]
[null,null,null,"(e) Producerad mätbar värme","c) Mätbar värme","3. Fjärrvärmedelanläggning, ej KL(e) Producerad mätbar värme","Flik G_Fall-back, III.(e)","Beräkna medelvärdet av producerad mätbar värme över samtliga år och multiplicera med värmeriktmärket."]
[null,null,null,"(f) Importerad mätbar värme","c) Mätbar värme","3. Fjärrvärmedelanläggning, ej KL(f) Importerad mätbar värme","Flik G_Fall-back, III.(f)","Beräkna medelvärdet av importerad nettovärme över samtliga år för aktuell post, d.v.s. den eller de poster som hierarikin inte är uppfylld för. Multiplicera sedan med värmeriktmärket."]
[null,null,"4. Delanläggning med bränsleriktmärke, KL","(b) Metod för att fastställa den årliga verksamhetsnivån","d) Icke mätbar värme",{"$f":"CONCATENATE(C$42,D42)","v":"4. Delanläggning med bränsleriktmärke, KL(b) Metod för att fastställa den årliga verksamhetsnivån"},"Flik G_Fall-back, IV.(a)","Beräkna medelvärdet av verksamhetsnivåerna över samtliga år och multiplicera med bränsleriktmärket."]
[null,null,null,"(d) Insatsbränsle till delanläggningen och relevant emissionsfaktor","a) Bränsle eller material som innehåller kol, inklusive avgaser",{"$f":"CONCATENATE(C$42,D43)","v":"4. Delanläggning med bränsleriktmärke, KL(d) Insatsbränsle till delanläggningen och relevant emissionsfaktor"},"Flik G_Fall-back, IV.(d)","Beräkna utsläppen över samtliga år för aktuell post, d.v.s. den eller de poster som hierarikin inte är uppfylld för. Räkna sedan ut medelvärdet för åren."]
[null,null,null,"(e) Exporterad mätbar värme","c) Mätbar värme","4. Delanläggning med bränsleriktmärke, KL(e) Exporterad mätbar värme","Flik G_Fall-back, IV.(e)","Beräkna medelvärdet av exporterad nettovärme över samtliga år och multiplicera med värmeriktmärket."]
[null,null,"5. Delanläggning med bränsleriktmärke, ej KL","(b) Metod för att fastställa den årliga verksamhetsnivån","d) Icke mätbar värme",{"$f":"CONCATENATE(C$45,D45)","v":"5. Delanläggning med bränsleriktmärke, ej KL(b) Metod för att fastställa den årliga verksamhetsnivån"},"Flik G_Fall-back, V.(a)","Beräkna medelvärdet av verksamhetsnivåerna över samtliga år och multiplicera med bränsleriktmärket."]
[null,null,null,"(d) Insatsbränsle till delanläggningen och relevant emissionsfaktor","a) Bränsle eller material som innehåller kol, inklusive avgaser",{"$f":"CONCATENATE(C$45,D46)","v":"5. Delanläggning med bränsleriktmärke, ej KL(d) Insatsbränsle till delanläggningen och relevant emissionsfaktor"},"Flik G_Fall-back, V.(d)","Beräkna utsläppen över samtliga år för aktuell post, d.v.s. den eller de poster som hierarikin inte är uppfylld för. Räkna sedan ut medelvärdet för åren."]
[null,null,null,"(e) Exporterad mätbar värme","c) Mätbar värme","5. Delanläggning med bränsleriktmärke, ej KL(e) Exporterad mätbar värme","Flik G_Fall-back, V.(e)","Beräkna medelvärdet av exporterad nettovärme över samtliga år och multiplicera med värmeriktmärket."]
[null,null,null,null,null,""]
[null,"H_SpecialBM","I. CWT (raffinaderiprodukter)","(b) CWT-kapacitetsdata","f) Kvantiteten av en produkt för vilken ett produktriktmärke ska tillämpas","I. CWT (raffinaderiprodukter)(b) CWT-kapacitetsdata","Flik H_SpecialBM, I.(c)",{"$f":"\"\"","v":""}]
[null,null,"II. Kalk","(b) Information om tillämpad metod","f) Kvantiteten av en produkt för vilken ett produktriktmärke ska tillämpas","II. Kalk(b) Information om tillämpad metod","Flik H_SpecialBM, II.(d)",{"$f":"\"\"","v":""}]
[null,null,"III. Dolime","(b) Information om tillämpad metod","f) Kvantiteten av en produkt för vilken ett produktriktmärke ska tillämpas","III. Dolime(b) Information om tillämpad metod","Flik H_SpecialBM, III.(d)",{"$f":"\"\"","v":""}]
[null,null,"IV. Ångkrackning","(b) Uppgifter om kompletterande insatsvaror","f) Kvantiteten av en produkt för vilken ett produktriktmärke ska tillämpas","IV. Ångkrackning(b) Uppgifter om kompletterande insatsvaror","Flik H_SpecialBM, IV.1.(d) och IV.2.(b)",{"$f":"\"\"","v":""}]
[null,null,"V. CWT (aromater)","(b) CWT-kapacitetsdata","f) Kvantiteten av en produkt för vilken ett produktriktmärke ska tillämpas","V. CWT (aromater)(b) CWT-kapacitetsdata","Flik H_SpecialBM, V.(c)",{"$f":"\"\"","v":""}]
[null,null,"VI. Vätgas","(b) Volymfraktion vätgas VF(H2)","f) Kvantiteten av en produkt för vilken ett produktriktmärke ska tillämpas","VI. Vätgas(b) Volymfraktion vätgas VF(H2)","Flik H_SpecialBM, VI.(d)",{"$f":"\"\"","v":""}]
[null,null,"VII. Syntesgas","(b) Volymfraktion vätgas VF(H2)","f) Kvantiteten av en produkt för vilken ett produktriktmärke ska tillämpas","VII. Syntesgas(b) Volymfraktion vätgas VF(H2)","Flik H_SpecialBM, VII.(d)",{"$f":"\"\"","v":""}]
[null,null,"VIII. Etylenoxid/etylenglykoler","(b) Produktion avseende etylenoxid och etylenglykoler","f) Kvantiteten av en produkt för vilken ett produktriktmärke ska tillämpas","VIII. Etylenoxid/etylenglykoler(b) Produktion avseende etylenoxid och etylenglykoler","Flik H_SpecialBM, VIII.(c)",{"$f":"\"\"","v":""}]
[null,null,"IX. Vinylkloridmonomer (VCM)","(b) Värmeförbrukning från vätgasförbränning","f) Kvantiteten av en produkt för vilken ett produktriktmärke ska tillämpas",{"$f":"CONCATENATE(C57,D57)","v":"IX. Vinylkloridmonomer (VCM)(b) Värmeförbrukning från vätgasförbränning"},"Flik H_SpecialBM, IX.(b)",{"$f":"\"\"","v":""}]